bitfinex/quotes_BTCUSD_20240911
["timestamp","ask_amount","ask_price","bid_price","bid_amount"]
[1726015702652,0.99697363,57770.0,57769.0,0.32875063]
[1726015702871,0.99697363,57770.0,57769.0,0.62757958]
[1726015703104,0.99697363,57770.0,57769.0,0.62758398]
[1726015703544,0.99697363,57770.0,57769.0,0.25103816]
[1726015704238,0.99697363,57770.0,57769.0,0.32875063]
[1726015704461,0.99697363,57770.0,57769.0,0.57297507]
[1726015704681,0.99697363,57770.0,57769.0,0.67663313]
[1726015704895,0.99697363,57770.0,57769.0,0.74891525]
[1726015705330,0.99697363,57770.0,57769.0,0.92959891]
[1726015707095,0.99697363,57770.0,57769.0,0.9291394]
[1726015707796,0.99697363,57770.0,57769.0,1.0291394]
[1726015708451,0.99697363,57770.0,57769.0,1.02918592]
[1726015708669,0.99697363,57770.0,57769.0,1.02518592]
[1726015708903,0.99697363,57770.0,57769.0,1.03618592]
[1726015709571,0.99697363,57770.0,57769.0,1.02818592]
[1726015709795,0.99697363,57770.0,57769.0,1.04218592]
[1726015710511,0.99697363,57770.0,57769.0,1.19764943]
[1726015710957,0.99697363,57770.0,57769.0,1.46005428]
[1726015711180,0.99697363,57770.0,57769.0,1.04218592]
[1726015711410,0.99697363,57770.0,57769.0,1.46205428]
[1726015711883,0.99697363,57770.0,57769.0,1.04218592]
[1726015712113,0.99697363,57770.0,57769.0,0.74370852]
[1726015712344,0.99697363,57770.0,57769.0,1.46031358]
[1726015712570,0.99697363,57770.0,57769.0,1.49231358]
[1726015713518,0.99697363,57770.0,57769.0,1.53831358]
[1726015713968,0.99697363,57770.0,57769.0,1.54131358]
[1726015714206,0.99697363,57770.0,57769.0,1.55531358]
[1726015715392,0.99697363,57770.0,57769.0,1.55216229]
[1726015715642,0.99697363,57770.0,57769.0,0.83870852]
[1726015716070,0.99697363,57770.0,57769.0,1.55192958]
[1726015716942,0.99697363,57770.0,57769.0,1.55183922]
[1726015718033,0.99697363,57770.0,57769.0,1.62119322]
[1726015718476,0.99697363,57770.0,57769.0,1.60102505]
[1726015718707,0.99697363,57770.0,57769.0,1.62106586]
[1726015721768,0.99697363,57770.0,57769.0,1.619073]
[1726015723308,0.99697363,57770.0,57769.0,1.621073]
[1726015724208,0.99697363,57770.0,57769.0,1.55672733]
[1726015726282,0.99697363,57770.0,57769.0,1.53667938]
[1726015726503,0.99697363,57770.0,57769.0,1.55674565]
[1726015727904,0.99697363,57770.0,57769.0,1.54274565]
[1726015728108,0.99697363,57770.0,57769.0,1.55674565]
[1726015728303,0.99697363,57770.0,57769.0,1.54274565]
[1726015728507,0.99697363,57770.0,57769.0,1.55674565]
[1726015729838,0.99697363,57770.0,57769.0,1.55672021]
[1726015730378,0.99697363,57770.0,57769.0,1.1407273]
[1726015730598,0.99697363,57770.0,57769.0,1.55672021]
[1726015730838,0.99697363,57770.0,57769.0,1.1407273]
[1726015731001,0.99697363,57770.0,57769.0,1.55672021]
[1726015731212,0.36629088,57770.0,57769.0,1.0754988]
[1726015731418,0.36629088,57770.0,57769.0,1.0614988]
[1726015731614,0.36629088,57770.0,57769.0,1.0894988]
[1726015732066,0.36629088,57770.0,57769.0,1.05545797]
[1726015732230,0.36629088,57770.0,57769.0,1.08939003]
[1726015732673,0.36629088,57770.0,57769.0,1.14619137]
[1726015732886,0.36629088,57770.0,57769.0,1.24440771]
[1726015733118,0.36629088,57770.0,57769.0,1.07339003]
[1726015733822,0.36629088,57770.0,57769.0,1.07539003]
[1726015734038,0.36629088,57770.0,57769.0,0.97917369]
[1726015734270,0.36629088,57770.0,57769.0,1.06139003]
[1726015734499,0.36629088,57770.0,57769.0,1.05939003]
[1726015734755,0.36629088,57770.0,57769.0,1.08739003]
[1726015734960,0.36629088,57770.0,57769.0,1.07339003]
[1726015735185,0.36629088,57770.0,57769.0,0.89724163]
[1726015735417,0.36629088,57770.0,57769.0,0.85741345]
[1726015735654,0.36629088,57770.0,57769.0,0.84341345]
[1726015735902,0.36629088,57770.0,57769.0,0.97257263]
[1726015736106,0.36629088,57770.0,57769.0,1.03673843]
[1726015736329,0.36629088,57770.0,57769.0,0.90957925]
[1726015736546,0.36629088,57770.0,57769.0,0.89557925]
[1726015736772,0.36629088,57770.0,57769.0,0.99557925]
[1726015736978,0.36629088,57770.0,57769.0,1.02357925]
[1726015737204,0.36629088,57770.0,57769.0,1.00957925]
[1726015737430,0.36629088,57770.0,57769.0,0.99557925]
[1726015737654,0.36629088,57770.0,57769.0,1.00957925]
[1726015738124,0.36629088,57770.0,57769.0,1.02357925]
[1726015738592,0.36629088,57770.0,57769.0,1.00370867]
[1726015738817,0.36629088,57770.0,57769.0,1.02354771]
[1726015740370,0.36629088,57770.0,57769.0,1.02173112]
[1726015740603,0.36629088,57770.0,57769.0,0.86134898]
[1726015740817,0.36629088,57770.0,57769.0,0.83134898]
[1726015741059,0.36629088,57770.0,57769.0,0.61212022]
[1726015741317,0.36629088,57770.0,57769.0,0.83192384]
[1726015742181,0.36629088,57770.0,57769.0,0.96110997]
[1726015743998,0.36629088,57770.0,57769.0,0.96150716]
[1726015744225,0.36629088,57770.0,57769.0,0.94166812]
[1726015744438,0.36629088,57770.0,57769.0,0.96154748]
[1726015745098,0.36629088,57770.0,57769.0,0.94166812]
[1726015745335,0.36629088,57770.0,57769.0,0.83226188]
[1726015745549,0.42849088,57770.0,57769.0,0.81238252]
[1726015745785,0.42849088,57770.0,57769.0,0.96158224]
[1726015745990,0.42849088,57770.0,57769.0,0.94170288]
[1726015746236,0.42849088,57770.0,57769.0,0.63989142]
[1726015746465,0.51059088,57770.0,57769.0,0.29054585]
[1726015746886,0.51059088,57770.0,57769.0,0.22480966]
[1726015747330,0.51059088,57770.0,57769.0,0.21980966]
[1726015747543,0.42849088,57770.0,57769.0,0.47334979]
[1726015747769,0.42849088,57770.0,57769.0,0.77745636]
[1726015747981,0.42849088,57770.0,57769.0,0.76845636]
[1726015748197,0.42849088,57770.0,57769.0,0.69085641]
[1726015748405,0.42849088,57770.0,57769.0,0.76845252]
[1726015749300,0.42849088,57770.0,57769.0,0.29233251]
[1726015749521,0.51059088,57770.0,57769.0,0.26647664]
[1726015749745,0.51059088,57770.0,57769.0,0.26947664]
[1726015749965,0.51059088,57770.0,57769.0,0.26147664]
[1726015750237,0.51059088,57770.0,57769.0,0.27247664]
[1726015750466,0.51059088,57770.0,57769.0,0.2117364]
[1726015750690,0.51059088,57770.0,57769.0,0.2207364]
[1726015750916,0.51059088,57770.0,57769.0,0.2157364]
[1726015751145,0.51059088,57770.0,57769.0,0.2067364]
[1726015751365,0.51059088,57770.0,57769.0,0.2177364]
[1726015751581,0.51059088,57770.0,57769.0,0.2097364]
[1726015752745,0.51059088,57770.0,57769.0,0.2067364]
[1726015752931,0.51059088,57770.0,57769.0,0.2117364]
[1726015756334,0.51059088,57770.0,57769.0,0.2067364]
[1726015756572,0.51059088,57770.0,57769.0,0.2097364]
[1726015763438,0.42849088,57770.0,57769.0,0.2097364]
[1726015765024,0.42849088,57770.0,57769.0,0.2067364]
[1726015766372,0.42849088,57770.0,57769.0,0.2117364]
[1726015766594,0.42849088,57770.0,57769.0,0.2067364]
[1726015767070,0.42849088,57770.0,57769.0,0.2157364]
[1726015767738,0.42849088,57770.0,57769.0,0.2197364]
[1726015769088,0.36629088,57770.0,57769.0,0.63025089]
[1726015769334,0.36629088,57770.0,57769.0,1.12906589]
[1726015769563,0.36629088,57770.0,57769.0,1.1549428]
[1726015770027,0.36629088,57770.0,57769.0,1.1509428]
[1726015770248,0.36629088,57770.0,57769.0,1.1489428]
[1726015770469,0.36629088,57770.0,57769.0,1.1629428]
[1726015770946,0.36629088,57770.0,57769.0,1.1559428]
[1726015772525,0.36629088,57770.0,57769.0,1.1679428]
[1726015774493,0.36629088,57770.0,57769.0,1.07166849]
[1726015774961,0.36629088,57770.0,57769.0,0.93336849]
[1726015775178,0.36629088,57770.0,57769.0,0.80398391]
[1726015776480,0.36629088,57770.0,57769.0,0.93336849]
[1726015776703,0.36629088,57770.0,57769.0,0.6826323]
[1726015776921,0.36629088,57770.0,57769.0,0.36146585]
[1726015776922,0.42669088,57770.0,57769.0,0.36146585]
[1726015777157,0.42669088,57770.0,57769.0,0.2097364]
[1726015777613,0.42669088,57770.0,57769.0,0.26148296]
[1726015778035,0.42669088,57770.0,57769.0,0.28448296]
[1726015778256,0.42669088,57770.0,57769.0,0.2327364]
[1726015778704,0.42669088,57770.0,57769.0,0.28450163]
[1726015779130,0.42669088,57770.0,57769.0,0.31033224]
[1726015779349,0.42669088,57770.0,57769.0,0.60370787]
[1726015779578,0.50869088,57770.0,57769.0,0.26151606]
[1726015779805,0.50869088,57770.0,57769.0,0.2097364]
[1726015780234,0.50869088,57770.0,57769.0,0.26151606]
[1726015781176,0.50869088,57770.0,57769.0,0.24751606]
[1726015781396,0.50869088,57770.0,57769.0,0.07441306]
[1726015781608,0.50869088,57770.0,57769.0,0.0106334]
[1726015782027,0.50869088,57770.0,57769.0,0.1937364]
[1726015782726,0.50869088,57770.0,57769.0,0.2077364]
[1726015782931,0.50869088,57770.0,57769.0,0.1837364]
[1726015783128,0.50869088,57770.0,57769.0,0.1927364]
[1726015783373,0.50869088,57770.0,57769.0,0.2067364]
[1726015783782,0.50869088,57770.0,57769.0,0.25851606]
[1726015784194,0.50869088,57770.0,57769.0,0.2067364]
[1726015785410,0.50869088,57770.0,57769.0,0.25851606]
[1726015786004,0.50869088,57770.0,57769.0,0.08541306]
[1726015786240,1.47046519,57770.0,57769.0,0.0336334]
[1726015786472,1.60326629,57770.0,57769.0,0.0336334]
[1726015786700,1.60326629,57770.0,57769.0,0.024638]
[1726015787162,1.60326629,57770.0,57769.0,0.001638]
[1726015787403,1.60326629,57770.0,57769.0,0.014638]
[1726015787630,1.60326629,57770.0,57769.0,0.005638]
[1726015788327,1.60326629,57770.0,57769.0,0.007638]
[1726015788580,1.60326629,57770.0,57769.0,0.003638]
[1726015788802,1.60426629,57770.0,57769.0,0.002638]
[1726015789256,1.60326629,57770.0,57769.0,0.001638]
[1726015789484,0.68179088,57770.0,57769.0,0.001638]
[1726015789709,1.02999088,57770.0,57769.0,0.002638]
[1726015790187,1.02799088,57770.0,57769.0,0.001638]
[1726015790627,1.02999088,57770.0,57769.0,0.002638]
[1726015791327,1.37619088,57770.0,57769.0,0.002638]
[1726015791781,1.85519198,57770.0,57769.0,0.002638]
[1726015792006,1.50899198,57770.0,57769.0,0.002638]
[1726015792496,1.50699198,57770.0,57769.0,0.001638]
[1726015792721,1.50799198,57770.0,57769.0,0.002638]
[1726015793167,1.16079198,57770.0,57769.0,0.001638]
[1726015793398,1.16079198,57770.0,57769.0,0.002638]
[1726015793664,1.16179198,57770.0,57769.0,0.002638]
[1726015793886,1.50699198,57770.0,57769.0,0.001638]
[1726015794354,1.50699198,57770.0,57769.0,0.002638]
[1726015794355,1.50799198,57770.0,57769.0,0.002638]
[1726015795939,1.68416153,57770.0,57769.0,0.002638]
[1726015796162,1.50799198,57770.0,57769.0,0.002638]
[1726015799885,1.85419198,57770.0,57769.0,0.002638]
[1726015800190,1.88419198,57770.0,57769.0,0.002638]
[1726015800583,1.45372631,57758.0,57757.0,0.00164]
[1726015800828,1.58832564,57758.0,57757.0,0.00164]
[1726015802219,1.65267198,57758.0,57757.0,0.00264]
[1726015802429,1.65267198,57758.0,57757.0,0.00164]
[1726015802873,1.65267198,57758.0,57757.0,0.00264]
[1726015802874,1.31539998,57758.0,57757.0,0.00264]
[1726015803340,1.30639998,57758.0,57757.0,0.00164]
[1726015803569,1.47466658,57758.0,57757.0,0.00164]
[1726015803808,1.49266658,57758.0,57757.0,0.00364]
[1726015804082,1.48866658,57758.0,57757.0,0.00264]
[1726015804333,1.32039998,57758.0,57757.0,0.00264]
[1726015804560,1.32439998,57758.0,57757.0,0.00364]
[1726015805466,1.31039998,57758.0,57757.0,0.00264]
[1726015805681,1.32039998,57758.0,57757.0,0.00364]
[1726015806344,1.31039998,57758.0,57757.0,0.00264]
[1726015806610,1.32139998,57758.0,57757.0,0.00364]
[1726015809030,1.49116718,57758.0,57757.0,0.00364]
[1726015809712,1.32139998,57758.0,57757.0,0.00364]
[1726015810383,1.66767198,57758.0,57757.0,0.00364]
[1726015812923,1.66967198,57758.0,57757.0,0.00364]
[1726015813171,1.69967198,57758.0,57757.0,0.00364]
[1726015813610,1.69767198,57758.0,57757.0,0.00364]
[1726015813827,1.87384153,57758.0,57757.0,0.00364]
[1726015814015,1.87584153,57758.0,57757.0,0.00364]
[1726015814808,1.87384153,57758.0,57757.0,0.00364]
[1726015815437,1.69967198,57758.0,57757.0,0.00364]
[1726015815656,1.85967198,57758.0,57757.0,0.00364]
[1726015816110,2.20594398,57758.0,57757.0,0.00364]
[1726015816324,2.25714885,57758.0,57757.0,0.00364]
[1726015817211,0.03,57749.0,57742.0,0.00164]
[1726015817452,0.74396365,57743.0,57742.0,0.00164]
[1726015817683,1.57353581,57743.0,57742.0,0.00164]
[1726015818526,2.02989781,57743.0,57742.0,0.00164]
[1726015818748,2.21606736,57743.0,57742.0,0.00264]
[1726015819224,2.30606736,57743.0,57742.0,0.00164]
[1726015819456,2.31606736,57743.0,57742.0,0.00264]
[1726015819719,2.32506736,57743.0,57742.0,0.00364]
[1726015819956,2.14189781,57743.0,57742.0,0.00264]
[1726015820185,2.15089781,57743.0,57742.0,0.00364]
[1726015820410,2.14189781,57743.0,57742.0,0.00264]
[1726015820654,2.13989781,57743.0,57742.0,0.00264]
[1726015820895,2.14389781,57743.0,57742.0,0.00264]
[1726015821130,2.13189781,57743.0,57742.0,0.00164]
[1726015821580,2.14489781,57743.0,57742.0,0.00164]
[1726015821803,2.32106736,57743.0,57742.0,0.00164]
[1726015822013,2.30806736,57743.0,57742.0,0.00164]
[1726015822462,2.32206736,57743.0,57742.0,0.00164]
[1726015823100,2.33406736,57743.0,57742.0,0.00164]
[1726015823315,2.32006736,57743.0,57742.0,0.00164]
[1726015823756,2.33406736,57743.0,57742.0,0.00164]
[1726015824233,2.34806736,57743.0,57742.0,0.00164]
[1726015824445,2.33406736,57743.0,57742.0,0.00164]
[1726015824661,2.34806736,57743.0,57742.0,0.00164]
[1726015825544,2.32006736,57743.0,57742.0,0.00164]
[1726015825987,2.33406736,57743.0,57742.0,0.00164]
[1726015826229,1.71753581,57743.0,57742.0,0.00164]
[1726015826679,1.73153581,57743.0,57742.0,0.00164]
[1726015827770,1.73353581,57743.0,57742.0,0.00164]
[1726015831029,1.73153581,57743.0,57742.0,0.00164]
[1726015831240,1.73353581,57743.0,57742.0,0.00164]
[1726015831482,1.90970536,57743.0,57742.0,0.00164]
[1726015831693,1.90770536,57743.0,57742.0,0.00164]
[1726015831946,1.73153581,57743.0,57742.0,0.00164]
[1726015832860,1.71753581,57743.0,57742.0,0.00164]
[1726015833084,1.73153581,57743.0,57742.0,0.00264]
[1726015833297,1.73353581,57743.0,57742.0,0.00264]
[1726015833540,1.70553581,57743.0,57742.0,0.00164]
[1726015833759,1.89370536,57743.0,57742.0,0.00364]
[1726015833991,1.90770536,57743.0,57742.0,0.00364]
[1726015834428,1.89370536,57743.0,57742.0,0.00264]
[1726015834656,1.98690536,57743.0,57742.0,0.00364]
[1726015834886,2.33326736,57743.0,57742.0,0.00364]
[1726015835150,2.33326736,57743.0,57742.0,0.00264]
[1726015835151,2.32126736,57743.0,57742.0,0.00264]
[1726015835637,2.32126736,57743.0,57742.0,0.00164]
[1726015835868,2.33526736,57743.0,57742.0,0.00264]
[1726015836331,2.30726736,57743.0,57742.0,0.00164]
[1726015836575,2.32126736,57743.0,57742.0,0.00264]
[1726015836787,2.33526736,57743.0,57742.0,0.00364]
[1726015837249,2.32126736,57743.0,57742.0,0.00264]
[1726015837692,2.33526736,57743.0,57742.0,0.00364]
[1726015841780,2.38648703,57743.0,57742.0,0.00364]
[1726015843823,1.59071,57740.0,57739.0,0.001638]
[1726015844041,2.00500279,57740.0,57739.0,0.001638]
[1726015845156,2.03200279,57740.0,57739.0,0.003638]
[1726015846303,2.19062344,57740.0,57739.0,0.003638]
[1726015846521,2.19262344,57740.0,57739.0,0.003638]
[1726015846756,2.33465935,57740.0,57739.0,0.003638]
[1726015847208,2.33265935,57740.0,57739.0,0.003638]
[1726015848081,2.33465935,57740.0,57739.0,0.003638]
[1726015848725,2.33265935,57740.0,57739.0,0.003638]
[1726015849146,2.33465935,57740.0,57739.0,0.003638]
[1726015854955,2.19262344,57740.0,57739.0,0.003638]
[1726015857473,2.2042149,57740.0,57739.0,0.003638]
[1726015858156,2.14004029,57740.0,57739.0,0.003638]
[1726015858828,2.07204029,57740.0,57739.0,0.003638]
[1726015859545,2.15176482,57740.0,57739.0,0.003638]
[1726015860242,2.08976482,57740.0,57739.0,0.003638]
[1726015860505,2.07204029,57740.0,57739.0,0.003638]
[1726015860728,2.14995752,57740.0,57739.0,0.003638]
[1726015861428,2.07836606,57740.0,57739.0,0.003638]
[1726015861651,2.10408154,57740.0,57739.0,0.003638]
[1726015861872,1.75770154,57740.0,57739.0,0.003638]
[1726015862346,1.6312555,57740.0,57739.0,0.003638]
[1726015862610,1.75770154,57740.0,57739.0,0.003638]
[1726015862832,1.83023838,57740.0,57739.0,0.003638]
[1726015863058,1.95977926,57740.0,57739.0,0.003638]
[1726015863298,1.92977926,57740.0,57739.0,0.003638]
[1726015863536,0.73486279,57740.0,57739.0,0.145138]
[1726015863996,0.68364312,57740.0,57739.0,0.15851139]
[1726015864678,0.67064312,57740.0,57739.0,0.15751139]
[1726015864960,0.66264312,57740.0,57739.0,0.15751139]
[1726015865183,0.66764312,57740.0,57739.0,0.15751139]
[1726015865634,0.67064312,57740.0,57739.0,0.15751139]
[1726015865855,0.65964312,57740.0,57739.0,0.15651139]
[1726015866313,0.66764312,57740.0,57739.0,0.15751139]
[1726015867029,0.32126312,57740.0,57739.0,0.15751139]
[1726015867283,0.011,57740.0,57739.0,0.33070439]
[1726015867510,0.011,57740.0,57739.0,0.33511861]
[1726015867965,0.011,57740.0,57739.0,0.16192561]
[1726015868201,0.18419,57740.0,57739.0,0.16192561]
[1726015868428,1.01424807,57740.0,57739.0,0.16192561]
[1726015868657,1.01424807,57740.0,57739.0,0.144138]
[1726015868899,1.14077737,57740.0,57739.0,0.144138]
[1726015869374,1.48715737,57740.0,57739.0,0.144138]
[1726015869600,1.48715737,57740.0,57739.0,0.002638]
[1726015869833,1.53839645,57740.0,57739.0,0.002638]
[1726015870142,1.54039645,57740.0,57739.0,0.002638]
[1726015870369,1.54039645,57740.0,57731.0,0.001638]
[1726015870370,1.304498,57732.0,57731.0,0.001638]
[1726015870595,1.304498,57732.0,57718.0,0.0025446]
[1726015870596,0.86625,57720.0,57718.0,0.0025446]
[1726015870822,1.50073377,57720.0,57718.0,0.0025446]
[1726015871081,1.55271663,57720.0,57718.0,0.0025446]
[1726015871303,1.55469099,57720.0,57718.0,0.0025446]
[1726015871541,1.57866911,57720.0,57718.0,0.0025446]
[1726015871798,1.50073377,57720.0,57718.0,0.0025446]
[1726015872029,1.45624486,57720.0,57718.0,0.0025446]
[1726015872267,1.56510891,57720.0,57718.0,0.0025446]
[1726015872959,1.58310891,57720.0,57719.0,0.003638]
[1726015873427,1.53186983,57720.0,57719.0,0.003638]
[1726015873665,1.70104606,57720.0,57719.0,0.003638]
[1726015874140,1.69304606,57720.0,57719.0,0.002638]
[1726015874382,1.52286983,57720.0,57719.0,0.001638]
[1726015874619,1.18036983,57720.0,57719.0,0.001638]
[1726015874851,1.17136983,57720.0,57719.0,0.001638]
[1726015875080,1.17736983,57720.0,57719.0,0.001638]
[1726015875307,1.53786983,57720.0,57719.0,0.001638]
[1726015875546,1.52786983,57720.0,57719.0,0.001638]
[1726015875776,1.52286983,57720.0,57719.0,0.001638]
[1726015875996,1.51386983,57720.0,57719.0,0.001638]
[1726015876217,1.52486983,57720.0,57719.0,0.001638]
[1726015877380,1.51986983,57720.0,57719.0,0.001638]
[1726015877610,0.33407118,57720.0,57719.0,0.001638]
[1726015877895,0.012,57720.0,57719.0,0.146838]
[1726015878118,0.19325,57720.0,57719.0,0.146838]
[1726015878347,0.53975,57720.0,57719.0,0.15776938]
[1726015878574,0.015,57720.0,57719.0,0.15776938]
[1726015878793,0.011,57720.0,57719.0,0.33102238]
[1726015879047,0.011,57720.0,57719.0,0.15776938]
[1726015879283,0.003,57720.0,57719.0,0.15776938]
[1726015879984,0.003,57720.0,57719.0,0.33102238]
[1726015880455,0.17405,57727.0,57724.0,0.1452]
[1726015881119,0.17405,57727.0,57725.0,0.01093138]
[1726015882546,0.17705,57727.0,57725.0,0.01093138]
[1726015882777,0.519696,57726.0,57725.0,0.01093138]
[1726015883004,0.173235,57725.0,57724.0,0.1452]
[1726015883469,0.173235,57725.0,57724.0,0.15620031]
[1726015883696,1.0057233,57725.0,57724.0,0.15620031]
[1726015883918,1.0057233,57725.0,57724.0,0.0789]
[1726015884190,1.0057233,57725.0,57724.0,0.0819]
[1726015884865,1.0057233,57725.0,57724.0,0.003]
[1726015884866,1.3521933,57725.0,57724.0,0.003]
[1726015885096,1.3521933,57725.0,57719.0,0.001638]
[1726015885097,0.3465,57720.0,57719.0,0.001638]
[1726015885316,0.86625,57720.0,57719.0,0.001638]
[1726015888288,0.87125,57720.0,57719.0,0.001638]
[1726015889666,0.88125,57720.0,57719.0,0.001638]
[1726015890115,0.88125,57720.0,57719.0,0.01261493]
[1726015890824,0.53475,57720.0,57719.0,0.01261493]
[1726015891048,0.18825,57720.0,57719.0,0.01261493]
[1726015891241,0.53475,57720.0,57719.0,0.001638]
[1726015891727,0.53475,57720.0,57719.0,0.01261493]
[1726015892867,0.88125,57720.0,57719.0,0.01261493]
[1726015894580,0.18825,57720.0,57719.0,0.01261493]
[1726015895083,0.18825,57720.0,57719.0,0.001638]
[1726015895803,0.88125,57720.0,57719.0,0.001638]
[1726015896769,1.36804865,57720.0,57719.0,0.001638]
[1726015897988,1.52715563,57720.0,57719.0,0.001638]
[1726015898217,1.36804865,57720.0,57719.0,0.001638]
[1726015899641,0.18825,57720.0,57719.0,0.001638]
[1726015899863,0.015,57720.0,57719.0,0.143238]
[1726015900089,0.015,57720.0,57719.0,0.1543075]
[1726015900350,0.015,57720.0,57719.0,0.143238]
[1726015900983,0.015,57720.0,57719.0,0.1543075]
[1726015905675,0.18825,57720.0,57719.0,0.1543075]
[1726015905905,0.015,57720.0,57719.0,0.1543075]
[1726015907845,0.18825,57720.0,57719.0,0.1543075]
[1726015909931,0.015,57720.0,57719.0,0.1543075]
[1726015910169,0.015,57720.0,57719.0,0.3275605]
[1726015910391,0.015,57720.0,57719.0,0.316491]
[1726015910617,0.015,57720.0,57719.0,0.32755466]
[1726015911097,0.005,57720.0,57719.0,0.32755466]
[1726015911537,0.346467,57726.0,57720.0,0.173247]
[1726015911538,0.173238,57724.0,57720.0,0.173247]
[1726015911965,0.173238,57724.0,57721.0,0.173246]
[1726015912209,0.173238,57724.0,57721.0,0.18430966]
[1726015912663,0.173233,57726.0,57722.0,0.173243]
[1726015912884,0.00082,57727.0,57724.0,0.173236]
[1726015913100,0.00082,57727.0,57723.0,0.23984]
[1726015913326,0.173233,57726.0,57723.0,0.23984]
[1726015913550,0.173233,57726.0,57724.0,0.01106366]
[1726015914008,0.179233,57726.0,57724.0,0.01106366]
[1726015914237,0.173235,57725.0,57724.0,0.01106366]
[1726015914461,0.866175,57725.0,57724.0,0.01106366]
[1726015914722,1.02699618,57725.0,57724.0,0.01106366]
[1726015914944,1.02699618,57725.0,57719.0,0.081238]
[1726015914945,0.51975,57720.0,57719.0,0.001638]
[1726015915402,0.51975,57720.0,57719.0,0.01268827]
[1726015915621,0.51975,57720.0,57719.0,0.001638]
[1726015916546,0.17325,57720.0,57719.0,0.001638]
[1726015916735,0.17325,57720.0,57719.0,0.01264389]
[1726015916981,0.48639946,57724.0,57719.0,0.01264389]
[1726015916982,0.173242,57723.0,57719.0,0.01264389]
[1726015917205,0.006,57720.0,57719.0,0.01264389]
[1726015917435,0.006,57720.0,57719.0,0.001638]
[1726015917848,0.006,57720.0,57719.0,0.175891]
[1726015918104,0.006,57720.0,57719.0,0.174891]
[1726015920152,0.173243,57723.0,57719.0,0.174891]
[1726015920622,0.173245,57722.0,57719.0,0.001638]
[1726015921062,0.346488,57722.0,57719.0,0.001638]
[1726015921516,0.17325,57720.0,57719.0,0.001638]
[1726015922463,0.346488,57722.0,57719.0,0.001638]
[1726015922716,0.17325,57720.0,57719.0,0.001638]
[1726015923174,0.17325,57720.0,57719.0,0.01265617]
[1726015923399,0.51975,57720.0,57719.0,0.001638]
[1726015923637,0.51975,57720.0,57719.0,0.01265413]
[1726015923869,0.17325,57720.0,57719.0,0.01265413]
[1726015924091,0.51975,57720.0,57719.0,0.01265413]
[1726015924329,1.13790577,57720.0,57719.0,0.01265413]
[1726015924545,1.13790577,57720.0,57719.0,0.001638]
[1726015924546,1.94005366,57720.0,57719.0,0.001638]
[1726015924781,2.04149559,57720.0,57719.0,0.001638]
[1726015925024,2.06743751,57720.0,57719.0,0.001638]
[1726015925252,2.04164773,57720.0,57719.0,0.001638]
[1726015925477,2.22337944,57720.0,57719.0,0.001638]
[1726015925917,2.09366982,57720.0,57719.0,0.001638]
[1726015926379,2.09266982,57720.0,57719.0,0.001638]
[1726015926877,2.09966982,57720.0,57719.0,0.001638]
[1726015927128,1.5776127,57720.0,57719.0,0.001638]
[1726015927381,1.7025462,57720.0,57719.0,0.001638]
[1726015927627,1.7165462,57720.0,57719.0,0.001638]
[1726015927820,1.7135462,57720.0,57719.0,0.001638]
[1726015928074,1.7045462,57720.0,57719.0,0.001638]
[1726015928294,1.7115462,57720.0,57719.0,0.001638]
[1726015928776,1.7245462,57720.0,57719.0,0.001638]
[1726015929680,1.7105462,57720.0,57719.0,0.001638]
[1726015929909,1.7245462,57720.0,57719.0,0.001638]
[1726015930371,1.5946127,57720.0,57719.0,0.001638]
[1726015930828,1.72362498,57720.0,57719.0,0.001638]
[1726015931285,1.82751788,57720.0,57719.0,0.001638]
[1726015931758,1.8275142,57720.0,57719.0,0.001638]
[1726015932408,1.69850192,57720.0,57719.0,0.001638]
[1726015934293,1.5946127,57720.0,57719.0,0.001638]
[1726015934734,1.86660192,57720.0,57719.0,0.001638]
[1726015935245,2.21310192,57720.0,57719.0,0.001638]
[1726015935489,2.1112127,57720.0,57719.0,0.001638]
[1726015935709,2.28738225,57720.0,57719.0,0.001638]
[1726015936160,2.28538225,57720.0,57719.0,0.001638]
[1726015936386,1.78844849,57720.0,57719.0,0.001638]
[1726015936631,1.6846127,57720.0,57719.0,0.001638]
[1726015937333,1.76248189,57720.0,57719.0,0.001638]
[1726015937774,1.6846127,57720.0,57719.0,0.001638]
[1726015938028,1.78844714,57720.0,57719.0,0.001638]
[1726015938243,1.73247566,57720.0,57719.0,0.001638]
[1726015938485,1.5313127,57720.0,57719.0,0.001638]
[1726015938979,1.51004865,57720.0,57719.0,0.001638]
[1726015939202,1.68509721,57720.0,57719.0,0.001638]
[1726015939656,2.10746017,57720.0,57719.0,0.001638]
[1726015940108,2.10946017,57720.0,57719.0,0.001638]
[1726015940314,2.10746017,57720.0,57719.0,0.001638]
[1726015940573,2.28362972,57720.0,57719.0,0.001638]
[1726015941040,2.28562972,57720.0,57719.0,0.001638]
[1726015941266,2.20776676,57720.0,57719.0,0.001638]
[1726015941548,2.28562972,57720.0,57719.0,0.001638]
[1726015942213,2.20776676,57720.0,57719.0,0.001638]
[1726015942888,2.25966505,57720.0,57719.0,0.001638]
[1726015943118,2.20776676,57720.0,57719.0,0.001638]
[1726015943369,2.28562972,57720.0,57719.0,0.001638]
[1726015943634,2.36372972,57720.0,57719.0,0.001638]
[1726015944386,2.7362012,57720.0,57719.0,0.001638]
[1726015944619,2.3897012,57720.0,57719.0,0.001638]
[1726015947625,2.21353165,57720.0,57719.0,0.001638]
[1726015947842,2.18753321,57720.0,57719.0,0.001638]
[1726015950385,2.10969721,57720.0,57719.0,0.001638]
[1726015951345,2.23949026,57720.0,57719.0,0.001638]
[1726015951564,2.10969721,57720.0,57719.0,0.001638]
[1726015952278,2.28586676,57720.0,57719.0,0.001638]
[1726015953649,2.41559276,57720.0,57719.0,0.001638]
[1726015953887,2.28586676,57720.0,57719.0,0.001638]
[1726015954130,0.551822,57712.0,57706.0,0.0025446]
[1726015954427,1.75818675,57712.0,57706.0,0.0025446]
[1726015954673,1.9343563,57712.0,57706.0,0.0025446]
[1726015954889,2.2809043,57712.0,57706.0,0.0025446]
[1726015955111,2.2789043,57712.0,57706.0,0.0025446]
[1726015955574,2.2879043,57712.0,57706.0,0.0025446]
[1726015955817,2.2919043,57712.0,57706.0,0.0025446]
[1726015956006,2.11573475,57712.0,57706.0,0.0025446]
[1726015956501,2.11173475,57712.0,57706.0,0.0025446]
[1726015956718,2.10273475,57712.0,57706.0,0.0025446]
[1726015957661,2.10473475,57712.0,57706.0,0.0025446]
[1726015957851,2.11773475,57712.0,57711.0,0.002638]
[1726015958115,2.2959043,57712.0,57711.0,0.002638]